Cogmind - Beta 16 @@@ ROGUE MODE // 2026.02.02 @ 08:06:09 Player: ae Result: Destroyed by D-53 Grenadier with Mini Grenade Launcher Performance ------------- Evolutions (0) 0 Regions Visited (2) 400 Robots Destroyed (6) 30 Value Destroyed (91) 91 Prototype IDs (2) 40 Alien Tech Used (0) 0 Bonus (0) 0 TOTAL SCORE: 561 Bonus ------- None Cogmind --------- Core Integrity 0/250 Matter 177/300 Energy 80/100 System Corruption 2% Temperature Cool (0) Movement Treading (160) Location -10/Mines Parts ------- > --- POWER (1) -------- (None) > --- PROPULSION (2) --- Light Treads Light Treads > --- UTILITY (2) ------ Large Storage Unit > --- WEAPON (2) ------- Light Assault Rifle > --- INVENTORY (15) --- Ion Engine Compact Wheel Compact Wheel Backup Propulsion III Backup Propulsion III Heat Sink Heat Sink Small Storage Unit Seismic Detector Small Laser Light Assault Rifle Light Assault Rifle Peak State ------------ > --- POWER ------------ Light Nuclear Core > --- PROPULSION ------- Aluminum Leg Aluminum Leg > --- UTILITY ---------- Large Storage Unit Backup Plating III > --- WEAPON ----------- Assault Rifle Light Assault Rifle > --- INVENTORY -------- Ion Engine Light Treads Light Treads Compact Wheel Compact Wheel Backup Propulsion III Backup Propulsion III Heat Sink Heat Sink Heat Sink Small Storage Unit Seismic Detector Small Laser Light Assault Rifle Light Assault Rifle [Rating: 12] Favorites ----------- Power Light Ion Engine Engine Light Ion Engine Power Core Light Nuclear Core Propulsion Aluminum Leg Treads Light Treads Leg Aluminum Leg Utility Large Storage Unit Device Seismic Detector Storage Large Storage Unit Protection Backup Plating III Weapon Light Assault Rifle Ballistic Gun Light Assault Rifle Build | -11 -10 -10 ------- Run | Yrd Mat Min Slots Evolved . | . . . Power . | . . . Propulsion . | . . . Utility . | . . . Weapon . | . . . Parts Attached 12 | 7 1 4 Power 2 | 1 . 1 Engine 1 | 1 . . Core 1 | . . 1 Reactor . | . . . Propulsion 4 | 2 . 2 Treads 2 | . . 2 Leg 2 | 2 . . Wheel . | . . . Hover . | . . . Flight . | . . . Utility 4 | 2 1 1 Device 2 | 1 . 1 Storage 2 | 1 1 . Processor . | . . . Hackware . | . . . Protection . | . . . Artifact . | . . . Weapon 2 | 2 . . Energy Gun . | . . . Energy Cannon . | . . . Ballistic Gun 2 | 2 . . Ballistic Cannon . | . . . Launcher . | . . . Special Weapon . | . . . Impact Weapon . | . . . Slashing Weapon . | . . . Piercing Weapon . | . . . Special Melee Weapon . | . . . Unidentified Prototypes . | . . . Parts Lost 6 | . . 6 Power 1 | . . 1 Propulsion 2 | . . 2 Utility 2 | . . 2 Weapon 1 | . . 1 Highest Loss Streak 6 | . . 6 To Critical Strikes . | . . . Average Backups 12 | 4 8 14 Power . | . 1 1 Propulsion 5 | 3 4 6 Utility 3 | . 2 5 Weapon 2 | . 1 2 Tool/Special . | . . . Unused Backups 8 | . . 8 Power 1 | . . 1 Propulsion 2 | . . 2 Utility 2 | . . 2 Weapon 3 | . . 3 Tool/Special . | . . . Average Slot Usage (%) 99 | . 99 100 Engine 9 | . 14 7 Core 4 | . . 6 Leg 27 | . 27 28 Device 2 | . 10 . Storage 14 | . 14 14 Protection 11 | . 3 14 Ballistic Gun 28 | . 28 28 Peak Build Rating 12 | 7 10 12 Average Rating 9 | 4 7 10 On Entrance 5 | . 7 10 Avg Prop Armor Cover (%) . | . . . Naked Turns . | . . . Heaviest Build 30 | 12 28 30 Greatest Support 20 | 20 20 20 Greatest Overweight (x) 2 | 2 1 1 Average Overweight (x) . | . . 1 Largest Inventory Capacity 15 | 8 15 15 Average Capacity 13 | 7 12 15 Most Carried 15 | 7 15 15 Average Carried 12 | 4 8 14 Final Capacity 15 | 8 15 15 Final Carried 13 | 6 13 12 Class Distribution -------------------- 100% | Mutant Dominant Class ---------------- Mutant | -10/Materials Mutant | -10/Mines Resources | -11 -10 -10 ----------- Run | Yrd Mat Min Matter Collected 293 | 196 . 97 Remotely . | . . . Salvage Created 129 | 32 . 97 Parts 9 | 2 . 7 Haulers Intercepted . | . . . Recyclers Shooed . | . . . Parts Field Recycled . | . . . Retrieved Matter . | . . . Parts Self-Destructed . | . . . Prevented . | . . . Parts Restored . | . . . Kills | -11 -10 -10 ------- Run | Yrd Mat Min Combat Hostiles Destroyed 4 | . . 4 Guns 4 | . . 4 Classes Destroyed 3 | 1 . 2 Tunneler 2 | 2 . . Swarmer 3 | . . 3 Grunt 1 | . . 1 Best Kill Streak 3 | 2 . 3 Combat Bots Only 3 | . . 3 Max Kills in Single Turn 1 | 1 . 1 Gunslinging . | . . . Exploded . | . . . Melee . | . . . Uniques/NPCs Destroyed . | . . . Combat | -11 -10 -10 -------- Run | Yrd Mat Min Hostile Shots Fired 52 | . . 52 Missed 11 | . . 11 Hits 41 | . . 41 Projectile 41 | . . 41 AOE 12 | . . 12 Critical Strikes 1 | . . 1 Damage Taken 838 | . . 838 Core 253 | . . 253 Absorbed by Shields . | . . . Core Remaining (%) 100 | 100 . . Volleys Fired 22 | 5 . 17 Largest 2 | 2 . 2 Hottest 40 | 40 . 40 Shots Fired 44 | 10 . 34 Gun 44 | 10 . 34 Cannon . | . . . Launcher . | . . . Special . | . . . Kinetic 44 | 10 . 34 Thermal . | . . . Explosive . | . . . Electromagnetic . | . . . Robot Hit Streak 11 | 3 . 11 Robot Miss Streak 2 | 1 . 2 Penetration Max . | . . . Secondary Targets . | . . . Shots Hit Robots 30 | 6 . 24 Core Hits 10 | 2 . 8 Critical Kills . | . . . Critical Parts Destroyed . | . . . Critical Strikes . | . . . Melee Attacks . | . . . Impact . | . . . Slashing . | . . . Piercing . | . . . Sneak Attacks . | . . . Combat Hostiles . | . . . Follow-up Attacks . | . . . Damage Inflicted 319 | 74 . 245 Guns 319 | 74 . 245 Cannons . | . . . Explosions . | . . . Melee . | . . . Ramming . | . . . Kinetic 319 | 74 . 245 Thermal . | . . . Explosive . | . . . Electromagnetic . | . . . Impact . | . . . Slashing . | . . . Piercing . | . . . Highest Corruption 2 | . 2 2 Average Corruption 2 | . 2 2 Corruption Purged . | . . . Corruption Blocked . | . . . Effects 11 | . 3 8 Message Errors 3 | . 2 1 Matter Fused 2 | . 1 1 Heat Flow Errors 4 | . . 4 Data Loss (minor) 2 | . . 2 Overload Shots . | . . . Overflow Damage . | . . . Projectiles . | . . . Explosions . | . . . Melee . | . . . Knockbacks . | . . . Impact . | . . . Kinetic . | . . . Secondary . | . . . Self-Inflicted Damage . | . . . Shots . | . . . Rammed . | . . . Targets Rammed . | . . . Kicked . | . . . Crushed . | . . . Highest Temperature 247 | . . 247 Average Temperature 63 | . . 63 Received Heat Transfer 204 | . . 204 Effects 1 | . . 1 Energy Bleed 1 | . . 1 Siege Activations . | . . . Martial Activations . | . . . Shielding Activations . | . . . Robots Disrupted . | . . . Combat Hostiles . | . . . Robots Corrupted . | . . . Combat Hostiles . | . . . Parts Fried . | . . . Impact Corruptions . | . . . Robots Melted . | . . . Combat Hostiles . | . . . Parts Melted . | . . . Heat Transferred . | . . . Parts Sabotaged . | . . . Parts Stolen . | . . . Parts Stripped . | . . . Power Chain Reactions . | . . . Alert | -11 -10 -10 ------- Run | Yrd Mat Min Maximum Alert Level . | . . . Low Security (%) 100 | 100 100 100 Level 1 . | . . . Level 2 . | . . . Level 3 . | . . . Level 4 . | . . . Level 5 . | . . . High Security . | . . . Max Security . | . . . Peak Influence 70 | 10 14 70 Initial . | . . . Average 8 | . 1 11 Influence Increases 152 | 10 19 123 Destroy 0b10 Robot/C 80 | . . 80 Destroy 0b10 Robot/NC 10 | 10 . . Destroy Leader 20 | . . 20 Successful Hack 27 | . 19 8 Lose Combat Pursuer 15 | . . 15 Influence Decreases 152 | 10 19 123 Time Decay 152 | 10 19 123 Squads Dispatched . | . . . Investigation . | . . . Extermination . | . . . Reinforcement . | . . . Assault . | . . . Garrison . | . . . Intercept . | . . . Searches Triggered . | . . . Construction Impeded . | . . . Haulers Reinforced . | . . . Active Scanning Responses . | . . . Cargo Convoy Interrupts . | . . . Stealth | -11 -10 -10 --------- Run | Yrd Mat Min Distress Signals 1 | . . 1 Communications Jammed . | . . . Distress Signals . | . . . Times Spotted 12 | . 2 10 Peak Tracking Total 4 | . 2 4 Tactical Retreats 1 | . . 1 Traps | -11 -10 -10 ------- Run | Yrd Mat Min Traps Triggered 1 | . 1 . Indirectly . | . . . Trap Hack Attempts . | . . . Triggered . | . . . Disarmed . | . . . Reprogrammed . | . . . Reused . | . . . Traps Extracted . | . . . Installed . | . . . Triggered . | . . . Machines | -11 -10 -10 ---------- Run | Yrd Mat Min Machines Disabled . | . . . Max in Single Turn . | . . . Machines Repaired . | . . . Machines Dismantled . | . . . Machines Sabotaged . | . . . Overloaded Fab Kills . | . . . Hacking | -11 -10 -10 --------- Run | Yrd Mat Min Machines Accessed 3 | . 2 1 Terminals 2 | . 1 1 Fabricators . | . . . Repair Stations 1 | . 1 . Recycling Units . | . . . Scanalyzers . | . . . Garrison Access . | . . . Total Hacks 5 | . 3 2 Successful 4 | . 3 1 Failed 1 | . . 1 Catastrophic . | . . . Database Lockouts . | . . . Manual 1 | . 1 . Terminals 4 | . 2 2 Fabricators . | . . . Repair Stations 1 | . 1 . Recycling Units . | . . . Scanalyzers . | . . . Garrison Access . | . . . Terminal Hacks 2 | . 1 1 Prototype ID Bank 1 | . 1 . Level Access Points 1 | . . 1 Fabricator Hacks . | . . . Repair Station Hacks 1 | . 1 . Refit 1 | . 1 . Recycling Unit Hacks . | . . . Scanalyzer . | . . . Garrison Access Hacks . | . . . Unauthorized Hacks 1 | . 1 . Terminals 1 | . 1 . Botnet 1 | . 1 . Fabricators . | . . . Repair Stations . | . . . Recycling Units . | . . . Scanalyzers . | . . . Garrison Access . | . . . Data Cores Recovered . | . . . Used . | . . . Hacking Detections 3 | . 2 1 Full Trace Events 1 | . . 1 Feedback Events . | . . . Feedback Blocked . | . . . Robot Schematics Acquired . | . . . Robots Built . | . . . Authchips . | . . . Time . | . . . Total Robot Build Rating . | . . . Part Schematics Acquired . | . . . Parts Built . | . . . Authchips . | . . . Time . | . . . Total Part Build Rating . | . . . Part Studies Acquired . | . . . Parts Repaired . | . . . Time . | . . . Parts Recycled . | . . . Recycled Matter . | . . . Retrieved Matter . | . . . Retrieved Components . | . . . Parts Scanalyzed . | . . . Part Schematics Acquired . | . . . Parts Damaged . | . . . Bothacking | -11 -10 -10 ------------ Run | Yrd Mat Min Used RIF Installer . | . . . Robots Hacked . | . . . Non-combat . | . . . Combat . | . . . Robot Hacks Applied . | . . . Relay Couplers Released . | . . . Fabnet Peak Effective % . | . . . Robots Rewired . | . . . Allies Hacked . | . . . Hacks Repelled . | . . . Allies | -11 -10 -10 -------- Run | Yrd Mat Min Total Allies . | . . . Largest Group . | . . . Highest-Rated Group . | . . . Highest-Rated Ally . | . . . Total Orders . | . . . Ally Attacks . | . . . Total Damage . | . . . Kills . | . . . Allies Corrupted . | . . . Allies Melted . | . . . Intel | -11 -10 -10 ------- Run | Yrd Mat Min Active Infowar (turns) 155 | 7 148 . Seismic 155 | 7 148 . Robot Analysis Total . | . . . Derelict Logs Recovered . | . . . Drone Launches . | . . . Drone Recoveries . | . . . Exploration | -11 -10 -10 ------------- Run | Yrd Mat Min Turns Passed 927 | 87 192 648 Spaces Moved 462 | 47 122 293 Core 11 | 11 . . Treads . | . . . Legs 451 | 36 122 293 Wheels . | . . . Hover . | . . . Flight . | . . . Fastest Speed 50 | 50 120 190 Average Speed 172 | 116 151 190 Slowest Speed 190 | 190 190 190 Overloaded Moves . | . . . Propulsion Burnouts . | . . . Robots Hopped . | . . . Potential Cave-ins . | . . . Cave-ins Triggered . | . . . Exploration Rate (%) 36 | 5 30 74 Regions Visited 2 Branch Regions 1 Pre-discovered Areas . | . . . Known Exits Taken . | . . . Unknown Exits Taken 2 | 1 1 . Scrap Searched . | . . . Spaces Dug . | . . . Terrain Destroyed . | . . . Melee . | . . . Projectile . | . . . AOE . | . . . Terrain Rammed . | . . . Walls Destroyed . | . . . Machines Disabled . | . . . Actions | -11 -10 -10 --------- Run | Yrd Mat Min Total 554 | 67 132 355 Wait 40 | 2 . 38 Move 460 | 46 121 293 Hop . | . . . Pick Up 12 | 7 3 2 Fast Attach 6 | 6 . . Attach 6 | 1 2 3 Detach 5 | . 5 . Swap 2 | . 1 1 Drop 1 | . . 1 Fire 22 | 5 . 17 Melee . | . . . Ram . | . . . Kick . | . . . Crush . | . . . Escape Stasis . | . . . Rewire . | . . . Trap . | . . . Miscellaneous . | . . . Route ------- -11/Scrapyard -10/Materials -10/Mines (discovered 3 exits: *Mat x2 / [*Sub]) History --------- Turn | Location | Event 13 | -11/Scrapyard | Discovered new exit (range 16) 88 | -11/Scrapyard | Entered Materials 204 | -10/Materials | Discovered new exit (range 16) 280 | -10/Materials | Entered Mines 318 | -10/Mines | Build established: Mutant 367 | -10/Mines | Discovered new exit (range 6) 668 | -10/Mines | Discovered new exit (range 6) 687 | -10/Mines | Identified exit to Materials 902 | -10/Mines | Assembled infested the area 919 | -10/Mines | Core integrity fell below 50% 928 | -10/Mines | Core integrity fell below 20% 928 | -10/Mines | Destroyed by D-53 Grenadier with Mini Grenade Launcher Last Messages --------------- 00902_ ALERT: Infestation in the mines, dispatching Demolisher response squad. 00914_ K-01 Serf destroyed. 00916_ K-01 Serf collects debris. 00917_ C-45 Heavy ARC bursts open, deploying its payload. 00917_ D-53 Grenadier unfolds itself. 00917_ K-01 Serf collects debris. 00917_ K-01 Serf destroyed. 00920_ K-01 Serf collects debris. 00923_ S UFIM5M,DM2Q3%GL6UDC 00923_ R-06 Scavenger destroyed. 00924_ Aluminum Leg destroyed. 00924_ K-01 Serf collects debris. 00925_ Assault Rifle destroyed. 00925_ Backup Plating III destroyed. 00926_ Aluminum Leg destroyed. 00927_ The unstable cave ceiling collapses. 00927_ Lgt. Nuclear Core destroyed. 00927_ Heat Sink destroyed. Map ----- +----------------------------------------------------+ | ???????????????????????????????????????????????? # | | ?????????????????????????????????????????? #???? # | | ??????????????????????????????????????????? #??? # | | ??????????????????????????????????????????? ??? # | | ??????????????????????????????????????????? #?? # | | ???????????????????????????????????????????? ## | | ???????????????????????????????????????????? | | ???????????????????????????????????????????? | | ????????????????????????????????????????????? | | ????????????????????????????????????????????? | | ?????????????????????????????????????????????# # | | ?????????????????????????????????????????????# #? | | ?????????????????????????????????????????##### #? | | ?????????????????????????????????????????# #? | | ?????????????????????????????????????????# ### ## | | ???????????????????????????????????####??# ### | | ??????????????????????????????????## ##?# ## | | ?????????????????????????????????## ### ## | | ???????????????????????####????### ### | | ??????????????????????? $#????# ### | | ???????????????????##### $###??# #### | | ???????????????????# ##?## #?## | | ???????????????????# ##?## < """ #?## | | ???????????????????# #??## """ #??? | | ?????????????????### #???## """ ##??? | | ????????????????## @ #????# #???? | | ????????????????# #????# ## #???? | | ????????????????## #????# #### ###?### | | ?????????????????#### ##????# #### ##### | | ????????????????????## d ######## | | ????????????????????## ! d% ######### | | ????????????????##### u% #### #######???????# | | ???????????????## k ##?# #?????????????# | | ???????????????# ### ####??????????# | | ??????????????## g ##???####### | | ?????????????## g #???# | | ????????????## ####### """ #???# | | ????????????# #??????## """ ###### #### # | | ???????????## #???????## """ ### #### ## | | ???????##### #????????# #?# ###### ### | | ??????## #????????# ##?# #????## ## | | ??????# #????????# #### ######## | | ??????# ##???????## ### ## | | ?###??# ######???####?# """ ### | | ##<#### ##???????# """ #?## | | # # ##??????# """ < #??# | | # + ### ##?????# #??# | | # ##?## ##????# """ """ #??#* | | # # ###???# ## #????# """ """ #### | | ###########?????# ### #???#T """ """ # | +----------------------------------------------------+ Best States ------------- Heat Dissipation 25 Energy Generation 14 Energy Capacity 160 Matter Stores 206 Matter Capacity 300 Sight Range 16 Terrain Scan Density 10 Armor Coverage 80 Evasion (%) 55 Item Schematics ----------------- None Robot Schematics ------------------ None Fabricated ------------ Nothing Repaired ---------- Nothing Studied --------- None Alien Tech Used ----------------- None Achievements -------------- None Challenges ------------ None Game ------ Seed TowerThermalBroadsword Manual? 0 Play Time 00:08:37 Cumulative 75.0 hours Start 2026.02.02 @ 07:59:26 End 2026.02.02 @ 08:06:09 Sessions 1 Manual Loads 0 Difficulty Rogue Special Mode None Game No. 55 Rogue 51 Adventurer 4 Explorer 0 Win Type - Total 1 Types 1/0/0/0/0/0/0/0/0/0 Lore% 45 Gallery% 43 Achievement% 34 Wizard Run 0 Options --------- Layout 1 ASCII 0 Keyboard 1 Movement Vi Keybinds 0 Fullscreen 0 Font 20/SmallcapsGlow Map View 50x35 Zoom Use 0% Tactical HUD 1 Map Filters NONE Filters NONE Steam 1 RUN: afaaa95b-fee7-474e-83f9-99f4ab115415